fUSD/lending_fUSD_20240214
["ID","MTS","AMOUNT","RATE_DAILY","PERIOD"]
[314003399,1707922256078,-500.0,0.00036986,2]
[314003400,1707922256088,-500.0,0.00036986,2]
[314003401,1707922256097,-500.0,0.00036986,2]
[314003402,1707922256106,-500.0,0.00036986,2]
[314003403,1707922256115,-500.0,0.00036986,2]
[314003404,1707922256125,-500.0,0.00036986,2]
[314003405,1707922256134,-500.0,0.00036986,2]
[314003406,1707922256143,-615.62,0.00036986,2]
[314003407,1707922256152,-500.0,0.00036986,2]
[314003408,1707922256161,-523.8,0.00036986,2]
[314003409,1707922256170,-500.0,0.00036986,2]
[314003410,1707922256179,-500.0,0.00036986,2]
[314003411,1707922256189,-500.0,0.00036986,2]
[314003412,1707922256198,-500.0,0.00036986,2]
[314003413,1707922256207,-195.39948218,0.00036986,2]
[314003414,1707922256216,-500.0,0.00036986,2]
[314003415,1707922256225,-500.0,0.00036986,2]
[314003416,1707922256234,-613.01,0.00036986,2]
[314003417,1707922256243,-500.0,0.00036986,2]
[314003418,1707922256254,-500.0,0.00036986,2]
[314003419,1707922256263,-500.0,0.00036986,2]
[314003420,1707922256273,-544.95,0.00036986,2]
[314003421,1707922256284,-500.0,0.00036986,2]
[314003422,1707922256293,-500.0,0.00036986,2]
[314003423,1707922256302,-500.0,0.00036986,2]
[314003424,1707922256311,-500.0,0.00036986,2]
[314003425,1707922256321,-773.06,0.00036986,2]
[314003426,1707922256331,-500.0,0.00036986,2]
[314003427,1707922256340,-1111.37,0.00036986,2]
[314003428,1707922256349,-500.0,0.00036986,2]
[314003429,1707922256359,-500.0,0.00036986,2]
[314003430,1707922256370,-500.0,0.00036986,2]
[314003431,1707922256380,-500.0,0.00036986,2]
[314003432,1707922256389,-3662.58,0.00036986,7]
[314003433,1707922256399,-500.0,0.00036986,2]
[314003434,1707922256408,-500.0,0.00036986,2]
[314003435,1707922256417,-671.95,0.00036986,2]
[314003436,1707922256426,-250.0,0.00036986,2]
[314003437,1707922256434,-156.42517367,0.00036986,2]
[314003438,1707922256443,-701.24,0.00036986,2]
[314003439,1707922256453,-578.46,0.00036986,2]
[314003440,1707922256462,-500.0,0.00036986,2]
[314003441,1707922256471,-833.72,0.00036986,2]
[314003442,1707922256480,-500.0,0.00036986,2]
[314003443,1707922256489,-500.0,0.00036986,2]
[314003444,1707922256498,-988.0,0.00036986,2]
[314003445,1707922256507,-187.41205165,0.00036986,2]
[314003446,1707922256516,-395.66965664,0.00036986,2]
[314003447,1707922256526,-500.0,0.00036986,2]
[314003448,1707922256537,-500.0,0.00036986,2]
[314003449,1707922256546,-500.0,0.00036986,2]
[314003450,1707922256554,-500.0,0.00036986,2]
[314003451,1707922256563,-500.0,0.00036986,2]
[314003452,1707922256572,-809.94,0.00036986,2]
[314003453,1707922256581,-500.0,0.00036986,2]
[314003454,1707922256590,-519.68,0.00036986,2]
[314003455,1707922256599,-500.0,0.00036986,2]
[314003456,1707922256609,-918.26,0.00036986,2]
[314003457,1707922256619,-604.57,0.00036986,2]
[314003458,1707922256632,-500.0,0.00036986,2]
[314003459,1707922256642,-500.0,0.00036986,2]
[314003460,1707922256650,-790.69,0.00036986,2]
[314003461,1707922256661,-459.28301981,0.00036986,2]
[314003462,1707922256669,-500.0,0.00036986,2]
[314003463,1707922256678,-549.93,0.00036986,2]
[314003464,1707922256687,-700.08,0.00036986,2]
[314003465,1707922256696,-500.0,0.00036986,2]
[314003466,1707922256707,-928.98,0.00036986,2]
[314003467,1707922256717,-811.44,0.00036986,2]
[314003468,1707922256726,-500.0,0.00036986,2]
[314003469,1707922256735,-778.18,0.00036986,2]
[314003470,1707922256745,-645.58,0.00036986,2]
[314003471,1707922256754,-500.0,0.00036986,2]
[314003472,1707922256763,-777.14,0.00036986,2]
[314003473,1707922256772,-574.95,0.00036986,2]
[314003474,1707922256782,-500.0,0.00036986,2]
[314003475,1707922256791,-601.95,0.00036986,2]
[314003476,1707922256799,-656.0,0.00036986,2]
[314003477,1707922256808,-500.0,0.00036986,2]
[314003478,1707922256817,-392.50109217,0.00036986,2]
[314003479,1707922256827,-500.0,0.00036986,2]
[314003480,1707922256836,-1207.5,0.00036986,2]
[314003481,1707922256845,-619.39,0.00036986,2]
[314003482,1707922256855,-1111.83,0.00036986,2]
[314003483,1707922256864,-500.0,0.00036986,2]
[314003484,1707922256873,-500.0,0.00036986,2]
[314003485,1707922256883,-500.0,0.00036986,2]
[314003486,1707922256892,-500.0,0.00036986,2]
[314003487,1707922256901,-956.38,0.00036986,2]
[314003488,1707922256911,-856.66,0.00036986,2]
[314003489,1707922256920,-500.0,0.00036986,2]
[314003490,1707922256930,-420.79514496,0.00036986,2]
[314003491,1707922256940,-500.0,0.00036986,2]
[314003492,1707922256951,-500.0,0.00036986,2]
[314003493,1707922256961,-500.0,0.00036986,2]
[314003494,1707922256971,-500.0,0.00036986,2]
[314003495,1707922256981,-500.0,0.00036986,2]
[314003496,1707922256991,-782.65,0.00036986,2]
[314003497,1707922257000,-528.06,0.00036986,2]
[314003498,1707922257010,-635.89,0.00036986,2]
[314003499,1707922257019,-671.53,0.00036986,2]
[314003500,1707922257029,-500.0,0.00036986,2]
[314003501,1707922257042,-500.0,0.00036986,2]
[314003502,1707922257051,-500.0,0.00036986,2]
[314003503,1707922257060,-472.35031546,0.00036986,2]
[314003504,1707922257070,-899.09,0.00036986,2]
[314003505,1707922257080,-500.0,0.00036986,2]
[314003506,1707922257089,-500.0,0.00036986,2]
[314003507,1707922257098,-963.54,0.00036986,2]
[314003508,1707922257108,-500.0,0.00036986,2]
[314003509,1707922257117,-1532.71,0.00036986,2]
[314003510,1707922257125,-500.0,0.00036986,2]
[314003511,1707922257135,-500.0,0.00036986,2]
[314003512,1707922257145,-500.0,0.00036986,2]
[314003513,1707922257154,-1472.32,0.00036986,2]
[314003514,1707922257163,-751.45,0.00036986,2]
[314003515,1707922257172,-500.0,0.00036986,2]
[314003516,1707922257182,-700.67,0.00036986,2]
[314003517,1707922257191,-1423.11,0.00036986,2]
[314003518,1707922257201,-1098.8,0.00036986,2]
[314003519,1707922257210,-500.0,0.00036986,2]
[314003520,1707922257219,-500.0,0.00036986,2]
[314003521,1707922257228,-778.18,0.00036986,2]
[314003522,1707922257238,-286.54811499,0.00036986,2]
[314003523,1707922257248,-521.46,0.00036986,2]
[314003524,1707922257257,-500.0,0.00036986,2]
[314003525,1707922257266,-500.0,0.00036986,2]
[314003526,1707922257276,-500.0,0.00036986,2]
[314003527,1707922257288,-940.1,0.00036986,2]
[314003528,1707922257297,-1066.69,0.00036986,2]
[314003529,1707922257306,-550.56,0.00036986,2]
[314003530,1707922257316,-500.0,0.00036986,2]
[314003531,1707922257325,-500.0,0.00036986,2]
[314003532,1707922257334,-500.0,0.00036986,2]
[314003533,1707922257344,-621.38,0.00036986,2]
[314003534,1707922257353,-500.0,0.00036986,2]
[314003535,1707922257362,-794.55,0.00036986,2]
[314003536,1707922257371,-918.12,0.00036986,2]
[314003537,1707922257381,-500.0,0.00036986,2]
[314003538,1707922257390,-500.0,0.00036986,2]
[314003539,1707922257400,-991.59,0.00036986,2]
[314003540,1707922257409,-569.15,0.00036986,2]
[314003541,1707922257418,-500.0,0.00036986,2]
[314003542,1707922257428,-716.75,0.00036986,2]
[314003543,1707922257437,-500.0,0.00036986,2]
[314003544,1707922257446,-500.0,0.00036986,2]
[314003545,1707922257455,-535.48,0.00036986,2]
[314003546,1707922257465,-500.0,0.00036986,2]
[314003547,1707922257474,-1019.3,0.00036986,2]
[314003548,1707922257483,-1006.2,0.00036986,2]
[314003549,1707922257492,-500.0,0.00036986,2]
[314003550,1707922257501,-500.0,0.00036986,2]
[314003551,1707922257510,-648.59,0.00036986,2]
[314003552,1707922257519,-500.0,0.00036986,2]
[314003553,1707922257529,-500.0,0.00036986,2]
[314003554,1707922257539,-500.0,0.00036986,2]
[314003555,1707922257548,-500.0,0.00036986,2]
[314003556,1707922257557,-928.78,0.00036986,2]
[314003557,1707922257566,-500.0,0.00036986,2]
[314003558,1707922257575,-534.42,0.00036986,2]
[314003559,1707922257584,-500.0,0.00036986,2]
[314003560,1707922257593,-500.0,0.00036986,2]
[314003561,1707922257603,-500.0,0.00036986,2]
[314003562,1707922257614,-1580.92,0.00036986,2]
[314003563,1707922257624,-500.0,0.00036986,2]
[314003564,1707922257637,-541.27,0.00036986,2]
[314003565,1707922257647,-807.63,0.00036986,2]
[314003566,1707922257657,-565.58,0.00036986,2]
[314003567,1707922257666,-643.74,0.00036986,2]
[314003568,1707922257676,-507.18,0.00036986,2]
[314003569,1707922257685,-500.0,0.00036986,2]
[314003570,1707922257694,-500.0,0.00036986,2]
[314003571,1707922257704,-500.0,0.00036986,2]
[314003572,1707922257714,-595.09,0.00036986,2]
[314003573,1707922257725,-489.80324573,0.00036986,2]
[314003574,1707922257734,-500.66356701,0.00036986,2]
[314003575,1707922257743,-519.89708369,0.00036986,2]
[314003576,1707922257752,-500.0,0.00036986,2]
[314003577,1707922257762,-571.31,0.00036986,2]
[314003578,1707922257771,-500.0,0.00036986,2]
[314003579,1707922257780,-561.47,0.00036986,2]
[314003580,1707922257791,-1216.14,0.00036986,2]
[314003581,1707922257801,-500.0,0.00036986,2]
[314003582,1707922257811,-839.99,0.00036986,2]
[314003583,1707922257821,-570.44,0.00036986,2]
[314003584,1707922257830,-1391.78,0.00036986,2]
[314003585,1707922257840,-500.0,0.00036986,2]
[314003586,1707922257850,-500.0,0.00036986,2]
[314003587,1707922257859,-868.59,0.00036986,2]
[314003588,1707922257869,-525.19,0.00036986,2]
[314003589,1707922257878,-1540.05,0.00036986,2]
[314003590,1707922257887,-500.0,0.00036986,2]
[314003591,1707922257897,-500.0,0.00036986,2]
[314003592,1707922257906,-500.0,0.00036986,2]
[314003593,1707922257933,-1044.21,0.00036986,2]
[314003594,1707922257943,-500.0,0.00036986,2]
[314003595,1707922257952,-500.0,0.00036986,2]
[314003596,1707922257962,-1190.03,0.00036986,2]
[314003597,1707922257971,-500.0,0.00036986,2]
[314003598,1707922257981,-820.18,0.00036986,2]
[314003599,1707922257991,-500.0,0.00036986,2]
[314003600,1707922258000,-604.18,0.00036986,2]
[314003601,1707922258009,-984.39,0.00036986,2]
[314003602,1707922258019,-500.0,0.00036986,2]
[314003603,1707922258028,-500.0,0.00036986,2]
[314003604,1707922258041,-1424.63,0.00036986,2]
[314003605,1707922258056,-934.68,0.00036986,2]
[314003606,1707922258071,-500.0,0.00036986,2]
[314003607,1707922258080,-500.0,0.00036986,2]
[314003608,1707922258089,-500.0,0.00036986,2]
[314003609,1707922258099,-270.6925751,0.00036986,2]
[314003610,1707922258109,-500.0,0.00036986,2]
[314003611,1707922258120,-835.78,0.00036986,2]
[314003612,1707922258136,-500.0,0.00036986,2]
[314003613,1707922258147,-500.0,0.00036986,2]
[314003614,1707922258156,-500.0,0.00036986,2]
[314003615,1707922258166,-562.39,0.00036986,2]
[314003616,1707922258175,-755.67,0.00036986,2]
[314003617,1707922258184,-500.0,0.00036986,2]
[314003618,1707922258193,-500.0,0.00036986,2]
[314003619,1707922258202,-500.0,0.00036986,2]
[314003620,1707922258212,-500.0,0.00036986,2]
[314003621,1707922258221,-500.0,0.00036986,2]
[314003622,1707922258230,-591.31,0.00036986,2]
[314003623,1707922258239,-1409.33,0.00036986,2]
[314003624,1707922258249,-500.0,0.00036986,2]
[314003625,1707922258258,-500.0,0.00036986,2]
[314003626,1707922258268,-500.0,0.00036986,2]
[314003627,1707922258277,-839.47,0.00036986,2]
[314003628,1707922258293,-500.0,0.00036986,2]
[314003629,1707922258302,-500.0,0.00036986,2]
[314003630,1707922258312,-500.0,0.00036986,2]
[314003631,1707922258320,-1224.97,0.00036986,2]
[314003632,1707922258329,-528.94932706,0.00036986,2]
[314003633,1707922258339,-500.0,0.00036986,2]
[314003634,1707922258348,-500.0,0.00036986,2]
[314003635,1707922258357,-500.0,0.00036986,2]
[314003636,1707922258366,-500.0,0.00036986,2]
[314003637,1707922258375,-500.0,0.00036986,2]
[314003638,1707922258384,-500.0,0.00036986,2]
[314003639,1707922258394,-581.96475586,0.00036986,2]
[314003640,1707922258402,-500.0,0.00036986,2]
[314003641,1707922258411,-912.62,0.00036986,2]
[314003642,1707922258420,-500.0,0.00036986,2]
[314003643,1707922258430,-500.0,0.00036986,2]
[314003644,1707922258438,-527.88,0.00036986,2]
[314003645,1707922258447,-500.0,0.00036986,2]
[314003646,1707922258457,-601.93,0.00036986,2]
[314003647,1707922258466,-500.0,0.00036986,2]
[314003648,1707922258475,-500.0,0.00036986,2]
[314003649,1707922258484,-247.70246589,0.00036986,2]
[314003650,1707922258493,-500.0,0.00036986,2]
[314003651,1707922258502,-500.0,0.00036986,2]
[314003652,1707922258511,-500.0,0.00036986,2]
[314003653,1707922258521,-500.0,0.00036986,2]
[314003654,1707922258531,-500.0,0.00036986,2]
[314003655,1707922258541,-500.0,0.00036986,2]
[314003656,1707922258550,-500.0,0.00036986,2]
[314003657,1707922258559,-500.0,0.00036986,2]
[314003658,1707922258568,-500.0,0.00036986,2]
[314003659,1707922258578,-500.0,0.00036986,2]
[314003660,1707922258587,-500.0,0.00036986,2]
[314003661,1707922258597,-500.0,0.00036986,2]
[314003662,1707922258606,-500.0,0.00036986,2]
[314003663,1707922258620,-500.0,0.00036986,2]
[314003664,1707922258629,-500.0,0.00036986,2]
[314003665,1707922258638,-500.0,0.00036986,2]
[314003666,1707922258648,-607.77,0.00036986,2]
[314003667,1707922258657,-500.0,0.00036986,2]
[314003668,1707922258667,-500.0,0.00036986,2]
[314003669,1707922258676,-500.0,0.00036986,2]
[314003670,1707922258685,-500.0,0.00036986,2]
[314003671,1707922258695,-500.0,0.00036986,2]
[314003672,1707922258706,-500.0,0.00036986,2]
[314003673,1707922258715,-500.0,0.00036986,2]
[314003674,1707922258724,-500.0,0.00036986,2]
[314003675,1707922258733,-678.21,0.00036986,2]
[314003676,1707922258742,-500.0,0.00036986,2]
[314003677,1707922258752,-500.0,0.00036986,2]
[314003678,1707922258762,-1429.71,0.00036986,2]
[314003679,1707922258772,-500.0,0.00036986,2]
[314003680,1707922258783,-500.0,0.00036986,2]
[314003681,1707922258794,-500.0,0.00036986,2]
[314003682,1707922258803,-500.0,0.00036986,2]
[314003683,1707922258812,-545.6,0.00036986,2]
[314003684,1707922258822,-500.0,0.00036986,2]
[314003685,1707922258831,-678.82,0.00036986,2]
[314003686,1707922258840,-500.0,0.00036986,2]
[314003687,1707922258849,-500.0,0.00036986,2]
[314003688,1707922258859,-579.91,0.00036986,2]
[314003689,1707922258868,-786.31,0.00036986,2]
[314003690,1707922258877,-500.0,0.00036986,2]
[314003691,1707922258886,-500.0,0.00036986,2]
[314003692,1707922258896,-500.0,0.00036986,2]
[314003693,1707922258905,-500.0,0.00036986,2]
[314003694,1707922258914,-583.53635439,0.00036986,2]
[314003695,1707922258923,-564.07,0.00036986,2]
[314003696,1707922258933,-1284.74,0.00036986,2]
[314003697,1707922258942,-500.0,0.00036986,2]
[314003698,1707922258951,-500.0,0.00036986,2]
[314003699,1707922258960,-666.24,0.00036986,2]
[314003700,1707922258969,-1519.2,0.00036986,2]
[314003701,1707922258978,-500.0,0.00036986,2]
[314003702,1707922258987,-500.0,0.00036986,2]
[314003703,1707922258996,-501.69,0.00036986,2]
[314003704,1707922259006,-5465.66,0.00036986,2]
[314003705,1707922259015,-500.0,0.00036986,2]
[314003706,1707922259025,-500.0,0.00036986,2]
[314003707,1707922259035,-500.0,0.00036986,2]
[314003708,1707922259044,-675.71,0.00036986,2]
[314003709,1707922259285,-663.56,0.00036986,2]
[314003710,1707922259296,-7374.48,0.00036986,2]
[314003711,1707922259305,-774.51,0.00036986,2]
[314003712,1707922259314,-500.0,0.00036986,2]
[314003713,1707922259324,-500.0,0.00036986,2]
[314003714,1707922259333,-987.87,0.00036986,2]
[314003715,1707922259342,-1065.75,0.00036986,2]
[314003716,1707922259352,-500.0,0.00036986,2]
[314003717,1707922259362,-500.0,0.00036986,2]
[314003718,1707922259371,-500.0,0.00036986,2]
[314003719,1707922259381,-1077.82,0.00036986,2]
[314003720,1707922259390,-837.25,0.00036986,2]
[314003721,1707922259400,-500.0,0.00036986,2]
[314003722,1707922259409,-1136.21,0.00036986,2]
[314003723,1707922259420,-1239.19,0.00036986,2]
[314003724,1707922259430,-4429.77,0.00036986,2]
[314003725,1707922259439,-500.0,0.00036986,2]
[314003726,1707922259450,-1063.82,0.00036986,2]
[314003727,1707922259460,-2212.71,0.00036986,2]
[314003728,1707922259470,-890.89,0.00036986,2]
[314003729,1707922259479,-608.6,0.00036986,2]
[314003730,1707922259488,-500.0,0.00036986,2]
[314003731,1707922259498,-1033.57,0.00036986,2]
[314003732,1707922259507,-1901.13,0.00036986,2]
[314003733,1707922259517,-500.0,0.00036986,2]
[314003734,1707922259526,-500.0,0.00036986,2]
[314003735,1707922259538,-226.99385446,0.00036986,2]
[314003736,1707922259548,-9515.71,0.00036986,2]
[314003737,1707922259558,-500.0,0.00036986,2]
[314003738,1707922259567,-2217.93,0.00036986,2]
[314003739,1707922259577,-691.56,0.00036986,2]
[314003740,1707922259586,-500.0,0.00036986,2]
[314003741,1707922259596,-591.31,0.00036986,2]
[314003742,1707922259605,-547.71,0.00036986,2]
[314003743,1707922259615,-500.0,0.00036986,2]
[314003744,1707922259625,-3952.0,0.00036986,2]
[314003745,1707922259637,-500.0,0.00036986,2]
[314003746,1707922259651,-500.0,0.00036986,2]
[314003747,1707922259661,-3385.49,0.00036986,2]
[314003748,1707922259670,-500.0,0.00036986,2]
[314003749,1707922259681,-670.6,0.00036986,2]
[314003750,1707922259691,-500.0,0.00036986,2]
[314003751,1707922259702,-500.0,0.00036986,2]
[314003752,1707922259712,-4227.26,0.00036986,2]
[314003753,1707922259722,-500.0,0.00036986,2]
[314003754,1707922259733,-500.0,0.00036986,2]
[314003755,1707922259744,-500.0,0.00036986,2]
[314003756,1707922259754,-2400.94,0.00036986,2]
[314003757,1707922259764,-908.45,0.00036986,2]
[314003758,1707922259774,-865.54,0.00036986,2]
[314003759,1707922259786,-500.0,0.00036986,2]
[314003760,1707922259797,-1094.68,0.00036986,2]
[314003761,1707922259807,-500.0,0.00036986,2]
[314003762,1707922259817,-36067.24,0.00036986,2]
[314003763,1707922259827,-500.0,0.00036986,2]
[314003764,1707922259838,-1009.39,0.00036986,2]
[314003765,1707922259848,-549.68578068,0.00036986,2]
[314003766,1707922259859,-500.0,0.00036986,2]
[314003767,1707922259869,-686.35,0.00036986,2]
[314003768,1707922259879,-672.14,0.00036986,2]
[314003769,1707922259891,-594.1,0.00036986,2]
[314003770,1707922259901,-1009.36,0.00036986,2]
[314003771,1707922259914,-500.0,0.00036986,2]
[314003772,1707922259924,-500.0,0.00036986,2]
[314003773,1707922259934,-3382.18,0.00036986,2]
[314003774,1707922259944,-521.72,0.00036986,2]
[314003775,1707922259954,-8403.39,0.00036986,2]
[314003776,1707922259963,-500.0,0.00036986,2]
[314003777,1707922259973,-522.99,0.00036986,2]
[314003778,1707922259983,-952.56,0.00036986,2]
[314003779,1707922259994,-222.08710636,0.00036986,2]
[314003780,1707922260005,-500.0,0.00036986,2]
[314003781,1707922260015,-609.77,0.00036986,2]
[314003782,1707922260026,-500.0,0.00036986,2]
[314003783,1707922260038,-500.0,0.00036986,2]
[314003784,1707922260049,-500.0,0.00036986,2]
[314003785,1707922260059,-500.0,0.00036986,2]
[314003786,1707922260069,-500.0,0.00036986,2]
[314003787,1707922260079,-500.0,0.00036986,2]
[314003788,1707922260089,-500.0,0.00036986,2]
[314003789,1707922260099,-1592.96,0.00036986,2]
[314003790,1707922260109,-793.51,0.00036986,2]
[314003791,1707922260119,-1138.92,0.00036986,2]
[314003792,1707922260129,-872.27,0.00036986,2]
[314003793,1707922260140,-3696.86,0.00036986,2]
[314003794,1707922260150,-1091.42,0.00036986,2]
[314003795,1707922260160,-500.0,0.00036986,2]
[314003796,1707922260169,-500.0,0.00036986,2]
[314003797,1707922260179,-500.0,0.00036986,2]
[314003798,1707922260190,-500.0,0.00036986,2]
[314003799,1707922260199,-500.0,0.00036986,2]
[314003800,1707922260209,-500.0,0.00036986,2]
[314003801,1707922260218,-500.0,0.00036986,2]
[314003802,1707922260229,-932.74,0.00036986,2]
[314003803,1707922260239,-473.86547617,0.00036986,2]
[314003804,1707922260249,-531.46,0.00036986,2]
[314003805,1707922260259,-2584.03,0.00036986,2]
[314003806,1707922260269,-3521.46,0.00036986,2]
[314003807,1707922260279,-682.49,0.00036986,2]
[314003808,1707922260290,-5553.68,0.00036986,2]
[314003809,1707922260300,-500.0,0.00036986,2]
[314003810,1707922260310,-500.0,0.00036986,2]
[314003811,1707922260320,-288.72037962,0.00036986,2]
[314003812,1707922260330,-641.54,0.00036986,2]
[314003813,1707922260340,-778.1,0.00036986,2]
[314003814,1707922260350,-729.43,0.00036986,2]
[314003815,1707922260360,-1576.35,0.00036986,2]
[314003816,1707922260369,-500.0,0.00036986,2]
[314003817,1707922260380,-500.0,0.00036986,2]
[314003818,1707922260390,-569.59778847,0.00036986,2]
[314003819,1707922260399,-500.0,0.00036986,2]
[314003820,1707922260409,-500.0,0.00036986,2]
[314003821,1707922260418,-911.59,0.00036986,2]
[314003822,1707922260429,-500.0,0.00036986,2]
[314003823,1707922260440,-500.0,0.00036986,2]
[314003824,1707922260449,-2300.79,0.00036986,2]
[314003825,1707922260459,-500.0,0.00036986,2]
[314003826,1707922260469,-500.0,0.00036986,2]
[314003827,1707922260478,-1050.88,0.00036986,2]
[314003828,1707922260487,-591.88,0.00036986,2]
[314003829,1707922260497,-1000.0,0.00036986,5]
[314003830,1707922260507,-688.71,0.00036986,2]
[314003831,1707922260518,-1778.25,0.00036986,2]
[314003832,1707922260528,-1000.0,0.00036986,5]
[314003833,1707922260540,-500.0,0.00036986,2]
[314003834,1707922260550,-1000.0,0.00036986,5]
[314003835,1707922260560,-1000.0,0.00036986,5]
[314003836,1707922260569,-1696.84,0.00036986,2]
[314003837,1707922260579,-182.36,0.00036986,5]
[314003838,1707922260590,-1200.7,0.00036986,2]
[314003839,1707922260599,-500.0,0.00036986,2]
[314003840,1707922260609,-1331.35,0.00036986,2]
[314003841,1707922260619,-500.0,0.00036986,2]
[314003842,1707922260630,-1004.66,0.00036986,2]
[314003843,1707922260640,-829.59,0.00036986,2]
[314003844,1707922260650,-1165.08,0.00036986,2]
[314003845,1707922260659,-500.0,0.00036986,2]
[314003846,1707922260669,-500.0,0.00036986,2]
[314003847,1707922260680,-1087.69,0.00036986,2]
[314003848,1707922260689,-3784.81,0.00036986,2]
[314003849,1707922260698,-500.0,0.00036986,2]
[314003850,1707922260719,-1308.43,0.00036986,2]
[314003851,1707922260730,-1230.79,0.00036986,2]
[314003852,1707922260741,-568.08,0.00036986,2]
[314003853,1707922260751,-1261.43,0.00036986,2]
[314003854,1707922260761,-835.44,0.00036986,2]
[314003855,1707922260772,-690.74,0.00036986,2]
[314003856,1707922260782,-563.85,0.00036986,2]
[314003857,1707922260792,-7779.92,0.00036986,2]
[314003858,1707922260802,-710.69,0.00036986,2]
[314003859,1707922260812,-500.0,0.00036986,2]
[314003860,1707922260822,-500.0,0.00036986,2]
[314003861,1707922260832,-500.0,0.00036986,2]
[314003862,1707922260842,-11057.38,0.00036986,2]
[314003863,1707922260852,-815.58,0.00036986,2]
[314003864,1707922260862,-12353.88,0.00036986,2]
[314003865,1707922260872,-847.01,0.00036986,2]
[314003866,1707922260881,-605.34,0.00036986,2]
[314003867,1707922260892,-500.0,0.00036986,2]
[314003868,1707922260902,-500.0,0.00036986,2]
[314003869,1707922260912,-500.0,0.00036986,2]
[314003870,1707922260922,-5879.62,0.00036986,2]
[314003871,1707922260932,-500.0,0.00036986,2]
[314003872,1707922260942,-500.0,0.00036986,2]
[314003873,1707922260952,-3211.25,0.00036986,2]
[314003874,1707922260962,-2461.78,0.00036986,2]
[314003875,1707922260972,-986.21,0.00036986,2]
[314003876,1707922260982,-500.0,0.00036986,2]
[314003877,1707922260992,-500.0,0.00036986,2]
[314003878,1707922261002,-500.0,0.00036986,2]
[314003879,1707922261012,-500.0,0.00036986,2]
[314003880,1707922261022,-500.0,0.00036986,2]
[314003881,1707922261033,-740.13,0.00036986,2]
[314003882,1707922261043,-1789.55,0.00036986,2]
[314003883,1707922261054,-500.0,0.00036986,2]
[314003884,1707922261064,-3422.12,0.00036986,2]
[314003885,1707922261074,-1879.94,0.00036986,2]
[314003886,1707922261084,-500.0,0.00036986,2]
[314003887,1707922261093,-1395.01,0.00036986,2]
[314003888,1707922261104,-1337.81,0.00036986,2]
[314003889,1707922261113,-3293.72,0.00036986,2]
[314003890,1707922261123,-11659.05,0.00036986,2]
[314003891,1707922261133,-1347.87,0.00036986,2]
[314003892,1707922261145,-558.73751123,0.00036986,2]
[314003893,1707922261155,-1185.25,0.00036986,2]
[314003894,1707922261165,-17691.87,0.00036986,2]
[314003895,1707922261174,-500.0,0.00036986,2]
[314003896,1707922261185,-500.0,0.00036986,2]
[314003897,1707922261195,-711.77,0.00036986,2]
[314003898,1707922261205,-607.79,0.00036986,2]